[Event "Late-Titled-Tuesday-Blitz-March-26-2024"]
[Site "Chess.com"]
[Date "2024.03.26"]
[Round "10"]
[White "Felix-Rose"]
[Black "sorch29"]
[Result "1/2-1/2"]
[WhiteElo "2281"]
[BlackElo "2449"]
[TimeControl "180+1"]
[EndTime "15:56:09 PDT"]
[Termination "Game drawn - insufficient material"]

1. e4 {[%clk 0:03:00.3]} 1... c5 {[%clk 0:03:00]} 2. Nf3 {[%clk 0:03:00.6]} 2...
Nc6 {[%clk 0:03:00.1]} 3. d4 {[%clk 0:03:00.8]} 3... cxd4 {[%clk 0:03:00.4]} 4.
Nxd4 {[%clk 0:03:01.7]} 4... Nf6 {[%clk 0:03:01.3]} 5. Nc3 {[%clk 0:03:02]} 5...
e5 {[%clk 0:03:01.8]} 6. Ndb5 {[%clk 0:03:02.4]} 6... d6 {[%clk 0:03:02.3]} 7.
Bg5 {[%clk 0:03:02.4]} 7... a6 {[%clk 0:03:02.1]} 8. Na3 {[%clk 0:03:03]} 8...
b5 {[%clk 0:03:01.9]} 9. Nab1 {[%clk 0:03:03.4]} 9... Be7 {[%clk 0:03:00.5]} 10.
Bxf6 {[%clk 0:03:03.7]} 10... Bxf6 {[%clk 0:02:57]} 11. a4 {[%clk 0:03:03.8]}
11... b4 {[%clk 0:02:54.6]} 12. Nd5 {[%clk 0:03:04]} 12... O-O {[%clk
0:02:53.8]} 13. Bc4 {[%clk 0:03:04]} 13... Bg5 {[%clk 0:02:49.6]} 14. O-O {[%clk
0:02:50.8]} 14... Be6 {[%clk 0:02:49.6]} 15. Qd3 {[%clk 0:02:42.1]} 15... Na5
{[%clk 0:02:48.7]} 16. Ba2 {[%clk 0:01:59.8]} 16... Qb8 {[%clk 0:02:35.1]} 17.
Rd1 {[%clk 0:01:47.4]} 17... Rc8 {[%clk 0:02:14]} 18. g3 {[%clk 0:01:43.1]}
18... Rc5 {[%clk 0:01:23.8]} 19. h4 {[%clk 0:01:40.6]} 19... Bd8 {[%clk
0:01:23.1]} 20. Ne3 {[%clk 0:01:26.5]} 20... Be7 {[%clk 0:01:03.3]} 21. Bd5
{[%clk 0:01:21.7]} 21... Ra7 {[%clk 0:01:00.1]} 22. Nd2 {[%clk 0:01:16]} 22...
Rac7 {[%clk 0:00:54.2]} 23. Nb3 {[%clk 0:01:12]} 23... Nxb3 {[%clk 0:00:49.4]}
24. Qxb3 {[%clk 0:01:10.1]} 24... Qc8 {[%clk 0:00:44.9]} 25. Qxb4 {[%clk
0:00:52.6]} 25... Rxc2 {[%clk 0:00:39.7]} 26. Nxc2 {[%clk 0:00:48.2]} 26... Rxc2
{[%clk 0:00:40.6]} 27. Bxe6 {[%clk 0:00:32.6]} 27... fxe6 {[%clk 0:00:37.8]} 28.
Rd2 {[%clk 0:00:31.1]} 28... Rc4 {[%clk 0:00:35.5]} 29. Qb3 {[%clk 0:00:20]}
29... Kf7 {[%clk 0:00:23.3]} 30. Rad1 {[%clk 0:00:12.9]} 30... Qc6 {[%clk
0:00:21.8]} 31. f3 {[%clk 0:00:09.6]} 31... Rxa4 {[%clk 0:00:17]} 32. Rc2 {[%clk
0:00:08]} 32... Qb5 {[%clk 0:00:13.8]} 33. Qxb5 {[%clk 0:00:08.5]} 33... axb5
{[%clk 0:00:14.7]} 34. Rc7 {[%clk 0:00:08.5]} 34... Kf6 {[%clk 0:00:14.2]} 35.
Rb7 {[%clk 0:00:08.3]} 35... Rb4 {[%clk 0:00:14.2]} 36. Rd2 {[%clk 0:00:09]}
36... h5 {[%clk 0:00:10.5]} 37. Kg2 {[%clk 0:00:06.6]} 37... Rb3 {[%clk
0:00:05.4]} 38. g4 {[%clk 0:00:05.8]} 38... hxg4 {[%clk 0:00:04.9]} 39. fxg4
{[%clk 0:00:06.7]} 39... d5 {[%clk 0:00:03.1]} 40. g5+ {[%clk 0:00:06.7]} 40...
Kf7 {[%clk 0:00:03.3]} 41. exd5 {[%clk 0:00:05.8]} 41... exd5 {[%clk 0:00:03.7]}
42. Rxd5 {[%clk 0:00:06.1]} 42... Rxb2+ {[%clk 0:00:03.7]} 43. Kh3 {[%clk
0:00:06.8]} 43... Ke6 {[%clk 0:00:04.1]} 44. Rdd7 {[%clk 0:00:06.4]} 44... Bc5
{[%clk 0:00:03.9]} 45. Rxg7 {[%clk 0:00:06]} 45... e4 {[%clk 0:00:03.9]} 46. Kg4
{[%clk 0:00:06.2]} 46... e3 {[%clk 0:00:04]} 47. Rg6+ {[%clk 0:00:06.5]} 47...
Kd5 {[%clk 0:00:03.4]} 48. Rd7+ {[%clk 0:00:06.5]} 48... Kc4 {[%clk 0:00:03.2]}
49. Re6 {[%clk 0:00:06.1]} 49... b4 {[%clk 0:00:02.3]} 50. Rc7 {[%clk
0:00:06.5]} 50... Kb5 {[%clk 0:00:02.2]} 51. Re5 {[%clk 0:00:06.8]} 51... Rc2
{[%clk 0:00:02.9]} 52. g6 {[%clk 0:00:05.3]} 52... b3 {[%clk 0:00:03.1]} 53.
Rb7+ {[%clk 0:00:05.2]} 53... Kc4 {[%clk 0:00:02.8]} 54. g7 {[%clk 0:00:05.5]}
54... Rg2+ {[%clk 0:00:01.7]} 55. Kf3 {[%clk 0:00:05.2]} 55... Rxg7 {[%clk
0:00:01.4]} 56. Rc7 {[%clk 0:00:05.9]} 56... b2 {[%clk 0:00:02]} 57. Rexc5+
{[%clk 0:00:05.5]} 57... Kd3 {[%clk 0:00:02.1]} 58. Rb5 {[%clk 0:00:05.5]} 58...
b1=Q {[%clk 0:00:01.7]} 59. Rxb1 {[%clk 0:00:05.3]} 59... Rxc7 {[%clk
0:00:02.4]} 60. Rd1+ {[%clk 0:00:05.6]} 60... Kc2 {[%clk 0:00:02.7]} 61. Re1
{[%clk 0:00:06.2]} 61... Rh7 {[%clk 0:00:03.1]} 62. Rxe3 {[%clk 0:00:05.6]}
62... Rxh4 {[%clk 0:00:03.3]} 63. Re2+ {[%clk 0:00:06.2]} 63... Kd1 {[%clk
0:00:03.8]} 64. Re4 {[%clk 0:00:06.2]} 64... Rh7 {[%clk 0:00:04.4]} 65. Ke3
{[%clk 0:00:06.6]} 65... Rf7 {[%clk 0:00:04.9]} 66. Kd3 {[%clk 0:00:06.7]} 66...
Rd7+ {[%clk 0:00:05.2]} 67. Rd4 {[%clk 0:00:07.3]} 67... Rxd4+ {[%clk
0:00:02.8]} 68. Kxd4 {[%clk 0:00:07.5]} 1/2-1/2

[Event "Late-Titled-Tuesday-Blitz-March-26-2024"]
[Site "Chess.com"]
[Date "2024.03.26"]
[Round "10"]
[White "AnthonyWirig"]
[Black "Fh2411"]
[Result "1-0"]
[WhiteElo "2811"]
[BlackElo "2582"]
[TimeControl "180+1"]
[EndTime "15:56:11 PDT"]
[Termination "AnthonyWirig won by resignation"]

1. e4 {[%clk 0:02:58.9]} 1... c6 {[%clk 0:03:00]} 2. Qf3 {[%clk 0:02:46.9]} 2...
d5 {[%clk 0:02:58.9]} 3. Nc3 {[%clk 0:02:46.9]} 3... dxe4 {[%clk 0:02:48.6]} 4.
Nxe4 {[%clk 0:02:46]} 4... Nf6 {[%clk 0:02:49.3]} 5. Bc4 {[%clk 0:02:44.8]} 5...
Qa5 {[%clk 0:02:21]} 6. Ne2 {[%clk 0:02:31.3]} 6... Qf5 {[%clk 0:02:19]} 7.
Nxf6+ {[%clk 0:02:28.1]} 7... exf6 {[%clk 0:02:18.1]} 8. Qe3+ {[%clk 0:02:25.3]}
8... Qe5 {[%clk 0:02:11.6]} 9. d4 {[%clk 0:02:21.9]} 9... Qxe3 {[%clk
0:02:10.7]} 10. Bxe3 {[%clk 0:02:18.5]} 10... Be6 {[%clk 0:02:05.3]} 11. Bxe6
{[%clk 0:02:17]} 11... fxe6 {[%clk 0:02:05.2]} 12. c4 {[%clk 0:02:17.6]} 12...
Nd7 {[%clk 0:02:04.5]} 13. Kd2 {[%clk 0:02:17.7]} 13... Kf7 {[%clk 0:02:04.4]}
14. Kc2 {[%clk 0:02:16.5]} 14... Rc8 {[%clk 0:02:00]} 15. Rad1 {[%clk
0:02:15.8]} 15... Bd6 {[%clk 0:01:48]} 16. Nc3 {[%clk 0:02:10.1]} 16... Rhd8
{[%clk 0:01:45.5]} 17. g4 {[%clk 0:02:08.7]} 17... Bb4 {[%clk 0:01:32.3]} 18.
Ne4 {[%clk 0:02:08.2]} 18... h6 {[%clk 0:01:31.6]} 19. h4 {[%clk 0:01:47.6]}
19... Be7 {[%clk 0:01:10.3]} 20. h5 {[%clk 0:01:43.3]} 20... b5 {[%clk
0:01:03.2]} 21. b3 {[%clk 0:01:41.8]} 21... a5 {[%clk 0:01:03.5]} 22. c5 {[%clk
0:01:33.3]} 22... Nf8 {[%clk 0:00:44]} 23. f4 {[%clk 0:01:27.4]} 23... f5 {[%clk
0:00:42.6]} 24. Nf2 {[%clk 0:01:19.2]} 24... a4 {[%clk 0:00:35.6]} 25. b4 {[%clk
0:01:18.5]} 25... fxg4 {[%clk 0:00:34.1]} 26. Nxg4 {[%clk 0:01:18]} 26... Bf6
{[%clk 0:00:34.7]} 27. Ne5+ {[%clk 0:01:05.4]} 27... Kg8 {[%clk 0:00:15]} 28.
Rhg1 {[%clk 0:00:45.5]} 28... Rc7 {[%clk 0:00:15.4]} 29. Ng4 {[%clk 0:00:44.8]}
29... Kf7 {[%clk 0:00:13.1]} 30. Kd3 {[%clk 0:00:40.4]} 30... Rd5 {[%clk
0:00:13]} 31. Ne5+ {[%clk 0:00:36.5]} 31... Kg8 {[%clk 0:00:11.5]} 32. Ke4
{[%clk 0:00:34.1]} 32... Nh7 {[%clk 0:00:07.3]} 33. Rg6 {[%clk 0:00:32.4]} 33...
Nf8 {[%clk 0:00:06.2]} 34. Rg4 {[%clk 0:00:29.3]} 34... Nh7 {[%clk 0:00:03]} 35.
Rdg1 {[%clk 0:00:29.1]} 35... Kf8 {[%clk 0:00:03.4]} 36. Ng6+ {[%clk 0:00:25.5]}
36... Kf7 {[%clk 0:00:03.5]} 37. Ne5+ {[%clk 0:00:24.3]} 37... Kf8 {[%clk
0:00:04]} 38. Rg6 {[%clk 0:00:23.7]} 38... Rd8 {[%clk 0:00:02.4]} 39. a3 {[%clk
0:00:18.9]} 39... Rd5 {[%clk 0:00:02.8]} 40. Bf2 {[%clk 0:00:17.2]} 40... Rd8
{[%clk 0:00:02.9]} 41. R1g2 {[%clk 0:00:17.5]} 41... Rd5 {[%clk 0:00:03.1]} 42.
Be3 {[%clk 0:00:18.1]} 42... Rd8 {[%clk 0:00:03.4]} 43. R6g4 {[%clk 0:00:18.1]}
43... Rd5 {[%clk 0:00:03.9]} 44. Ng6+ {[%clk 0:00:18.7]} 44... Kf7 {[%clk
0:00:04]} 45. Ne5+ {[%clk 0:00:16.6]} 45... Kf8 {[%clk 0:00:04.1]} 46. Rh2
{[%clk 0:00:17]} 46... Rd8 {[%clk 0:00:04]} 47. Rgg2 {[%clk 0:00:17.4]} 47...
Rd5 {[%clk 0:00:03.9]} 48. Rh1 {[%clk 0:00:18.1]} 48... Rd8 {[%clk 0:00:04]} 49.
Bf2 {[%clk 0:00:18.7]} 49... Rd5 {[%clk 0:00:02.8]} 50. Rhg1 {[%clk 0:00:18.5]}
50... Rd8 {[%clk 0:00:02.2]} 51. Ng4 {[%clk 0:00:18.8]} 51... Rd5 {[%clk
0:00:02.4]} 52. Rh1 {[%clk 0:00:18.8]} 52... Rd8 {[%clk 0:00:02.6]} 53. Bg1
{[%clk 0:00:17.7]} 53... Rd5 {[%clk 0:00:03.3]} 54. Bf2 {[%clk 0:00:17.2]} 54...
Rd8 {[%clk 0:00:02.7]} 55. Rd1 {[%clk 0:00:17.4]} 55... Rd5 {[%clk 0:00:03.3]}
56. Rh2 {[%clk 0:00:18.2]} 56... Rd8 {[%clk 0:00:03.6]} 57. Ne3 {[%clk
0:00:18.9]} 57... Kf7 {[%clk 0:00:03.2]} 58. Ng4 {[%clk 0:00:18.5]} 58... Rcd7
{[%clk 0:00:03.7]} 59. Ne5+ {[%clk 0:00:18.1]} 59... Bxe5 {[%clk 0:00:04.3]} 60.
fxe5 {[%clk 0:00:19]} 60... Ng5+ {[%clk 0:00:04.8]} 61. Kf4 {[%clk 0:00:18.3]}
61... Rd5 {[%clk 0:00:04.8]} 62. Be3 {[%clk 0:00:18.3]} 62... Ke7 {[%clk
0:00:05.3]} 63. Kg4 {[%clk 0:00:18.5]} 63... Ne4 {[%clk 0:00:05.1]} 64. Rf1
{[%clk 0:00:17.8]} 64... Rf8 {[%clk 0:00:05]} 65. Rf4 {[%clk 0:00:16.9]} 65...
Nc3 {[%clk 0:00:03.8]} 66. Rg2 {[%clk 0:00:14.5]} 66... Nb1 {[%clk 0:00:03.2]}
67. Kf3 {[%clk 0:00:14.1]} 67... Rxf4+ {[%clk 0:00:02.5]} 68. Kxf4 {[%clk
0:00:14.4]} 68... Kf7 {[%clk 0:00:03.4]} 69. Bc1 {[%clk 0:00:13.5]} 69... Rxd4+
{[%clk 0:00:03.4]} 70. Ke3 {[%clk 0:00:14]} 70... Rd5 {[%clk 0:00:03.6]} 71. Rc2
{[%clk 0:00:13.4]} 71... Rxe5+ {[%clk 0:00:03.1]} 72. Kd4 {[%clk 0:00:13.9]}
72... Rxh5 {[%clk 0:00:03.7]} 73. Ke4 {[%clk 0:00:13.8]} 73... Rh4+ {[%clk
0:00:04]} 74. Ke5 {[%clk 0:00:14.4]} 74... Rh5+ {[%clk 0:00:04.6]} 75. Kd6
{[%clk 0:00:14.8]} 75... Rh1 {[%clk 0:00:05]} 76. Kxc6 {[%clk 0:00:14.8]} 76...
Rh3 {[%clk 0:00:05.7]} 77. Kxb5 {[%clk 0:00:14.4]} 77... Nxa3+ {[%clk
0:00:06.4]} 78. Bxa3 {[%clk 0:00:14.5]} 78... Rxa3 {[%clk 0:00:07]} 79. c6
{[%clk 0:00:15.1]} 79... Rb3 {[%clk 0:00:02.4]} 80. c7 {[%clk 0:00:15.1]} 1-0

[Event "Late-Titled-Tuesday-Blitz-March-26-2024"]
[Site "Chess.com"]
[Date "2024.03.26"]
[Round "10"]
[White "RuperezA"]
[Black "dealshark"]
[Result "1/2-1/2"]
[WhiteElo "2457"]
[BlackElo "2302"]
[TimeControl "180+1"]
[EndTime "15:56:18 PDT"]
[Termination "Game drawn by repetition"]

1. d4 {[%clk 0:03:00.9]} 1... d5 {[%clk 0:02:59.6]} 2. c4 {[%clk 0:02:56.9]}
2... e6 {[%clk 0:02:59.5]} 3. Nc3 {[%clk 0:02:57.1]} 3... c5 {[%clk 0:02:59.9]}
4. cxd5 {[%clk 0:02:56]} 4... exd5 {[%clk 0:03:00.6]} 5. Nf3 {[%clk 0:02:55.5]}
5... Nc6 {[%clk 0:03:01.2]} 6. g3 {[%clk 0:02:55.3]} 6... Nf6 {[%clk 0:03:01]}
7. Bg2 {[%clk 0:02:55.7]} 7... Be7 {[%clk 0:03:01.1]} 8. O-O {[%clk 0:02:56.4]}
8... O-O {[%clk 0:03:01.2]} 9. Bg5 {[%clk 0:02:57.1]} 9... c4 {[%clk 0:03:01.4]}
10. Ne5 {[%clk 0:02:57.4]} 10... Be6 {[%clk 0:03:01.4]} 11. f4 {[%clk
0:02:55.5]} 11... Ng4 {[%clk 0:02:59.3]} 12. Bxe7 {[%clk 0:02:51.6]} 12... Nxe7
{[%clk 0:02:42]} 13. f5 {[%clk 0:01:04.2]} 13... Ne3 {[%clk 0:02:36.6]} 14. fxe6
{[%clk 0:01:04.4]} 14... Nxd1 {[%clk 0:02:30.4]} 15. exf7+ {[%clk 0:01:05.3]}
15... Kh8 {[%clk 0:02:25.3]} 16. Raxd1 {[%clk 0:01:05.8]} 16... Qd6 {[%clk
0:02:12.7]} 17. e4 {[%clk 0:01:04.5]} 17... Ng6 {[%clk 0:01:56.8]} 18. Nxg6+
{[%clk 0:00:52.6]} 18... Qxg6 {[%clk 0:01:54.9]} 19. Nxd5 {[%clk 0:00:49.6]}
19... Rxf7 {[%clk 0:01:52.8]} 20. Nf4 {[%clk 0:00:50.2]} 20... Qb6 {[%clk
0:01:43.6]} 21. Kh1 {[%clk 0:00:48.6]} 21... Raf8 {[%clk 0:01:34.5]} 22. e5
{[%clk 0:00:42]} 22... g5 {[%clk 0:01:31.5]} 23. e6 {[%clk 0:00:42.5]} 23...
gxf4 {[%clk 0:01:10.1]} 24. exf7 {[%clk 0:00:41.6]} 24... Rxf7 {[%clk
0:01:09.3]} 25. d5 {[%clk 0:00:40.4]} 25... Qxb2 {[%clk 0:01:01.7]} 26. d6
{[%clk 0:00:38.5]} 26... Qb5 {[%clk 0:00:56.6]} 27. Rxf4 {[%clk 0:00:25.2]}
27... Rd7 {[%clk 0:00:45.2]} 28. Bh3 {[%clk 0:00:21.1]} 28... Rd8 {[%clk
0:00:39.5]} 29. d7 {[%clk 0:00:12.7]} 29... Kg7 {[%clk 0:00:33.1]} 30. Rdf1
{[%clk 0:00:11.6]} 30... Qd5+ {[%clk 0:00:29.4]} 31. Kg1 {[%clk 0:00:11.2]}
31... c3 {[%clk 0:00:26.6]} 32. Rg4+ {[%clk 0:00:11]} 32... Kh6 {[%clk
0:00:23.3]} 33. Rh4+ {[%clk 0:00:10.9]} 33... Kg7 {[%clk 0:00:18.2]} 34. Rg4+
{[%clk 0:00:11.3]} 34... Kh8 {[%clk 0:00:18.2]} 35. Rgf4 {[%clk 0:00:11.9]}
35... Qd6 {[%clk 0:00:11.8]} 36. Bf5 {[%clk 0:00:10.3]} 36... b5 {[%clk
0:00:10.4]} 37. Kg2 {[%clk 0:00:09]} 37... b4 {[%clk 0:00:10.8]} 38. Rh4 {[%clk
0:00:08.8]} 38... Rxd7 {[%clk 0:00:09.7]} 39. Bxd7 {[%clk 0:00:09.7]} 39... Qxd7
{[%clk 0:00:10.1]} 40. Rxb4 {[%clk 0:00:10.4]} 40... c2 {[%clk 0:00:09.4]} 41.
Rb8+ {[%clk 0:00:08.1]} 41... Kg7 {[%clk 0:00:09.4]} 42. Rb3 {[%clk 0:00:07.4]}
42... Qd2+ {[%clk 0:00:08.9]} 43. Kh3 {[%clk 0:00:08.2]} 43... c1=Q {[%clk
0:00:08.5]} 44. Rxc1 {[%clk 0:00:09.1]} 44... Qxc1 {[%clk 0:00:08.9]} 45. Rb7+
{[%clk 0:00:10]} 45... Kg6 {[%clk 0:00:08.9]} 46. Rxa7 {[%clk 0:00:10.9]} 46...
Qf1+ {[%clk 0:00:07.4]} 47. Kh4 {[%clk 0:00:11.2]} 47... Qf6+ {[%clk 0:00:07.6]}
48. Kh3 {[%clk 0:00:11.5]} 48... Qf5+ {[%clk 0:00:08.2]} 49. Kg2 {[%clk
0:00:11.7]} 49... Qe4+ {[%clk 0:00:08.8]} 50. Kh3 {[%clk 0:00:12.4]} 50... Qe6+
{[%clk 0:00:08.9]} 51. Kg2 {[%clk 0:00:12.5]} 51... Qc6+ {[%clk 0:00:08.5]} 52.
Kh3 {[%clk 0:00:12.4]} 52... Qe6+ {[%clk 0:00:06.4]} 53. Kg2 {[%clk 0:00:12.6]}
53... h5 {[%clk 0:00:07]} 54. h4 {[%clk 0:00:10.5]} 54... Kf5 {[%clk 0:00:06.8]}
55. Ra5+ {[%clk 0:00:10]} 55... Kg6 {[%clk 0:00:04.3]} 56. Rg5+ {[%clk 0:00:10]}
56... Kf6 {[%clk 0:00:01.6]} 57. Ra5 {[%clk 0:00:08.1]} 57... Qe2+ {[%clk
0:00:01.6]} 58. Kh3 {[%clk 0:00:08.7]} 58... Qf1+ {[%clk 0:00:01.9]} 59. Kh2
{[%clk 0:00:08.5]} 59... Qf2+ {[%clk 0:00:02.5]} 60. Kh3 {[%clk 0:00:09.2]}
60... Qe2 {[%clk 0:00:02]} 61. Rg5 {[%clk 0:00:07.5]} 61... Qxa2 {[%clk
0:00:01.5]} 62. Rxh5 {[%clk 0:00:06.7]} 62... Kg6 {[%clk 0:00:01.6]} 63. Rg5+
{[%clk 0:00:07]} 63... Kh6 {[%clk 0:00:01.3]} 64. Kg4 {[%clk 0:00:06.8]} 64...
Qe2+ {[%clk 0:00:01.8]} 65. Kh3 {[%clk 0:00:07.7]} 65... Qf1+ {[%clk 0:00:02.2]}
66. Kh2 {[%clk 0:00:08.1]} 66... Qf2+ {[%clk 0:00:02.8]} 67. Kh3 {[%clk
0:00:09]} 67... Qg1 {[%clk 0:00:03.4]} 68. Kg4 {[%clk 0:00:08.1]} 68... Qh2
{[%clk 0:00:03.4]} 69. Kf3 {[%clk 0:00:07.9]} 69... Qh1+ {[%clk 0:00:03.2]} 70.
Kg4 {[%clk 0:00:08.8]} 70... Qe4+ {[%clk 0:00:03]} 71. Kh3 {[%clk 0:00:09.7]}
71... Qe2 {[%clk 0:00:02.8]} 72. Rg4 {[%clk 0:00:06.8]} 72... Qf1+ {[%clk
0:00:02.8]} 73. Kh2 {[%clk 0:00:06.8]} 73... Qf3 {[%clk 0:00:02.8]} 74. Rf4
{[%clk 0:00:07.4]} 74... Qe2+ {[%clk 0:00:02.5]} 75. Kh3 {[%clk 0:00:08.3]}
75... Qe6+ {[%clk 0:00:01.8]} 76. Kh2 {[%clk 0:00:06.1]} 76... Kg6 {[%clk
0:00:02.3]} 77. Kg2 {[%clk 0:00:05.4]} 77... Qe2+ {[%clk 0:00:02.5]} 78. Kh3
{[%clk 0:00:06.3]} 78... Qe1 {[%clk 0:00:02.4]} 79. Rg4+ {[%clk 0:00:06.6]}
79... Kh5 {[%clk 0:00:02.5]} 80. Rf4 {[%clk 0:00:07.4]} 80... Qe2 {[%clk
0:00:02.2]} 81. Rf5+ {[%clk 0:00:07.1]} 81... Kh6 {[%clk 0:00:02.3]} 82. Rg5
{[%clk 0:00:08]} 82... Qe1 {[%clk 0:00:02.8]} 83. Kg4 {[%clk 0:00:08.4]} 83...
Qe2+ {[%clk 0:00:03.1]} 84. Kh3 {[%clk 0:00:09.3]} 1/2-1/2

[Event "Late-Titled-Tuesday-Blitz-March-26-2024"]
[Site "Chess.com"]
[Date "2024.03.26"]
[Round "11"]
[White "gxbg2000"]
[Black "GWR2024"]
[Result "0-1"]
[WhiteElo "2031"]
[BlackElo "2180"]
[TimeControl "180+1"]
[EndTime "15:58:53 PDT"]
[Termination "GWR2024 won by resignation"]

1. e4 {[%clk 0:02:55.8]} 1... e5 {[%clk 0:02:59.2]} 2. Nf3 {[%clk 0:02:55.2]}
2... d5 {[%clk 0:02:56.6]} 3. exd5 {[%clk 0:02:53.5]} 3... e4 {[%clk 0:02:56.4]}
4. Qe2 {[%clk 0:02:52.9]} 4... Nf6 {[%clk 0:02:56.3]} 5. d3 {[%clk 0:02:53.2]}
5... Bb4+ {[%clk 0:02:56.3]} 6. c3 {[%clk 0:02:52.5]} 6... O-O {[%clk
0:02:55.5]} 7. dxe4 {[%clk 0:02:52.7]} 7... Bc5 {[%clk 0:02:55.5]} 8. Be3 {[%clk
0:02:52.1]} 8... Nxe4 {[%clk 0:02:54.8]} 9. Bxc5 {[%clk 0:02:51.3]} 9... Nxc5
{[%clk 0:02:55.7]} 10. Qc4 {[%clk 0:02:47.8]} 10... Nbd7 {[%clk 0:02:45.8]} 11.
Be2 {[%clk 0:02:44.6]} 11... b5 {[%clk 0:02:46.1]} 12. Qxb5 {[%clk 0:02:43.3]}
12... Ba6 {[%clk 0:02:44.9]} 13. Qc6 {[%clk 0:02:39]} 13... Re8 {[%clk
0:02:43.8]} 14. Nd4 {[%clk 0:02:38]} 14... Ne5 {[%clk 0:02:31.2]} 15. Qxc5
{[%clk 0:02:36.4]} 15... Nd3+ {[%clk 0:02:31]} 16. Kd2 {[%clk 0:02:35.2]} 16...
Nxc5 {[%clk 0:02:31.4]} 17. b4 {[%clk 0:02:32.1]} 17... Bxe2 {[%clk 0:02:28]}
18. bxc5 {[%clk 0:02:30.8]} 18... Qxd5 {[%clk 0:02:26.3]} 0-1

[Event "Late-Titled-Tuesday-Blitz-March-26-2024"]
[Site "Chess.com"]
[Date "2024.03.26"]
[Round "11"]
[White "GarciaIsaac"]
[Black "temus_galaktionov"]
[Result "1-0"]
[WhiteElo "2661"]
[BlackElo "2824"]
[TimeControl "180+1"]
[EndTime "16:00:04 PDT"]
[Termination "GarciaIsaac won by resignation"]

1. Nf3 {[%clk 0:03:00.9]} 1... c6 {[%clk 0:03:00.9]} 2. g3 {[%clk 0:02:59.5]}
2... g6 {[%clk 0:03:01.8]} 3. Bg2 {[%clk 0:02:59.5]} 3... Bg7 {[%clk 0:02:54.1]}
4. d4 {[%clk 0:02:59.2]} 4... d6 {[%clk 0:02:52.9]} 5. O-O {[%clk 0:02:58.9]}
5... Nd7 {[%clk 0:02:53.8]} 6. c4 {[%clk 0:02:59]} 6... Ngf6 {[%clk 0:02:54.3]}
7. Nc3 {[%clk 0:02:59.4]} 7... O-O {[%clk 0:02:55.2]} 8. e4 {[%clk 0:02:59.7]}
8... e5 {[%clk 0:02:55.8]} 9. h3 {[%clk 0:02:59.9]} 9... a5 {[%clk 0:02:55.5]}
10. Re1 {[%clk 0:02:58.6]} 10... exd4 {[%clk 0:02:55.1]} 11. Nxd4 {[%clk
0:02:59.5]} 11... Nc5 {[%clk 0:02:52.8]} 12. Nb3 {[%clk 0:02:59.1]} 12... Nxb3
{[%clk 0:02:47.8]} 13. axb3 {[%clk 0:03:00]} 13... Qe7 {[%clk 0:02:43.9]} 14.
Bf4 {[%clk 0:02:58.5]} 14... Nd7 {[%clk 0:02:44.5]} 15. Bxd6 {[%clk 0:02:54.6]}
15... Qe6 {[%clk 0:02:39.5]} 16. Bxf8 {[%clk 0:02:54.4]} 16... Nxf8 {[%clk
0:02:39.8]} 17. e5 {[%clk 0:02:40.8]} 17... Nd7 {[%clk 0:02:36.2]} 18. f4 {[%clk
0:02:39.3]} 18... g5 {[%clk 0:02:31.9]} 19. Qd6 {[%clk 0:02:33]} 19... gxf4
{[%clk 0:02:23.9]} 20. Qxe6 {[%clk 0:02:31.4]} 20... fxe6 {[%clk 0:02:24.8]} 21.
gxf4 {[%clk 0:02:31.7]} 21... Bh6 {[%clk 0:02:23.6]} 22. Rf1 {[%clk 0:02:08.2]}
22... Nc5 {[%clk 0:02:23.7]} 23. b4 {[%clk 0:01:59.6]} 23... Nd3 {[%clk
0:02:22]} 24. Rxa5 {[%clk 0:01:56.6]} 24... Rxa5 {[%clk 0:02:21.3]} 25. bxa5
{[%clk 0:01:57.5]} 25... Bxf4 {[%clk 0:02:16.8]} 26. Rf3 {[%clk 0:01:49.6]} 1-0

[Event "Late-Titled-Tuesday-Blitz-March-26-2024"]
[Site "Chess.com"]
[Date "2024.03.26"]
[Round "11"]
[White "YegoryoCh"]
[Black "Der_Balak_3Halak"]
[Result "1-0"]
[WhiteElo "2571"]
[BlackElo "2440"]
[TimeControl "180+1"]
[EndTime "16:00:04 PDT"]
[Termination "YegoryoCh won by resignation"]

1. e4 {[%clk 0:03:00.9]} 1... c6 {[%clk 0:02:57.3]} 2. d4 {[%clk 0:03:00.9]}
2... d5 {[%clk 0:02:57.6]} 3. e5 {[%clk 0:03:01.5]} 3... Bf5 {[%clk 0:02:56.5]}
4. c4 {[%clk 0:03:01.5]} 4... e6 {[%clk 0:02:56.2]} 5. Nc3 {[%clk 0:03:01.8]}
5... Bb4 {[%clk 0:02:53.7]} 6. cxd5 {[%clk 0:03:02]} 6... cxd5 {[%clk
0:02:50.7]} 7. Bd3 {[%clk 0:03:02]} 7... Bxd3 {[%clk 0:02:50.1]} 8. Qxd3 {[%clk
0:03:02.9]} 8... Nc6 {[%clk 0:02:49.2]} 9. Nf3 {[%clk 0:03:02.8]} 9... Nge7
{[%clk 0:02:48.5]} 10. O-O {[%clk 0:03:03]} 10... Nf5 {[%clk 0:02:48.8]} 11. Ne2
{[%clk 0:03:01.3]} 11... O-O {[%clk 0:02:47.4]} 12. a3 {[%clk 0:03:01.6]} 12...
Be7 {[%clk 0:02:45.8]} 13. b4 {[%clk 0:03:01.8]} 13... Nh4 {[%clk 0:02:36.5]}
14. Nd2 {[%clk 0:02:57.5]} 14... Nf5 {[%clk 0:02:32.2]} 15. Nb3 {[%clk
0:02:57.6]} 15... Qb6 {[%clk 0:02:25.1]} 16. Bd2 {[%clk 0:02:55]} 16... a5
{[%clk 0:02:24.1]} 17. b5 {[%clk 0:02:54.8]} 17... a4 {[%clk 0:02:17.9]} 18. Nc5
{[%clk 0:02:41]} 18... Nxe5 {[%clk 0:02:14.6]} 19. Qc3 {[%clk 0:02:28.4]} 19...
Nxd4 {[%clk 0:02:01.2]} 20. Qxd4 {[%clk 0:02:24.6]} 20... Nd7 {[%clk 0:01:56.1]}
21. Nxd7 {[%clk 0:02:22.2]} 21... Qxd4 {[%clk 0:01:48.6]} 22. Nxd4 {[%clk
0:02:23.1]} 22... Rfd8 {[%clk 0:01:46.9]} 23. Nb6 {[%clk 0:02:22.1]} 23... Rab8
{[%clk 0:01:46.7]} 24. Bf4 {[%clk 0:02:21.7]} 24... Bc5 {[%clk 0:01:46.3]} 25.
Bxb8 {[%clk 0:02:20.6]} 25... Bxd4 {[%clk 0:01:45.6]} 26. Bc7 {[%clk 0:02:19]}
1-0

[Event "Late-Titled-Tuesday-Blitz-March-26-2024"]
[Site "Chess.com"]
[Date "2024.03.26"]
[Round "11"]
[White "Sanyura"]
[Black "Bryanl106"]
[Result "1-0"]
[WhiteElo "2616"]
[BlackElo "2668"]
[TimeControl "180+1"]
[EndTime "16:00:07 PDT"]
[Termination "Sanyura won by checkmate"]

1. e4 {[%clk 0:03:00.9]} 1... e5 {[%clk 0:02:58.3]} 2. Nf3 {[%clk 0:03:00.8]}
2... Nc6 {[%clk 0:02:58]} 3. Bb5 {[%clk 0:03:00.3]} 3... a6 {[%clk 0:02:58]} 4.
Ba4 {[%clk 0:03:00.6]} 4... Nf6 {[%clk 0:02:58.1]} 5. O-O {[%clk 0:03:00.3]}
5... Be7 {[%clk 0:02:58.7]} 6. Re1 {[%clk 0:02:58.6]} 6... b5 {[%clk 0:02:58.9]}
7. Bb3 {[%clk 0:02:58.9]} 7... d6 {[%clk 0:02:59.5]} 8. c3 {[%clk 0:02:59.1]}
8... O-O {[%clk 0:02:59.8]} 9. h3 {[%clk 0:02:59.4]} 9... a5 {[%clk 0:03:00.4]}
10. d4 {[%clk 0:02:57.8]} 10... Bd7 {[%clk 0:02:56.4]} 11. a3 {[%clk 0:02:52.5]}
11... h6 {[%clk 0:02:51.6]} 12. Nbd2 {[%clk 0:02:52.3]} 12... a4 {[%clk
0:02:50.8]} 13. Ba2 {[%clk 0:02:52.4]} 13... Qb8 {[%clk 0:02:43.8]} 14. Nf1
{[%clk 0:02:51.9]} 14... Qb7 {[%clk 0:02:40.6]} 15. Ng3 {[%clk 0:02:51.5]} 15...
Rad8 {[%clk 0:02:35.9]} 16. Nh4 {[%clk 0:02:50.9]} 16... Rfe8 {[%clk 0:02:31.6]}
17. Nhf5 {[%clk 0:02:47.5]} 17... Bf8 {[%clk 0:02:31.1]} 18. Qf3 {[%clk
0:02:47.1]} 18... exd4 {[%clk 0:01:20.2]} 19. Nxh6+ {[%clk 0:02:46.3]} 19...
gxh6 {[%clk 0:01:20.2]} 20. Qxf6 {[%clk 0:02:46.5]} 20... Be6 {[%clk 0:01:17.6]}
21. Bxh6 {[%clk 0:02:44.5]} 21... Bxa2 {[%clk 0:01:09.1]} 22. Bxf8 {[%clk
0:02:43.4]} 22... Kxf8 {[%clk 0:01:04.2]} 23. Nf5 {[%clk 0:02:43.5]} 23... Re6
{[%clk 0:01:03]} 24. Qh8# {[%clk 0:02:43.3]} 1-0